bitfinex/quotes_SOLUSD_20240628
["timestamp","ask_amount","ask_price","bid_price","bid_amount"]
[1719608749389,17.17,140.14,140.09,24.326]
[1719608750405,17.17,140.15,140.09,24.326]
[1719608750706,20.0,140.14,140.09,24.326]
[1719608751199,20.0,140.14,140.11,7.156]
[1719608757013,20.0,140.14,140.12,7.156]
[1719608757214,20.0,140.15,140.12,7.156]
[1719608758196,20.0,140.15,140.11,7.156]
[1719608759111,37.17,140.15,140.11,7.156]
[1719608760192,17.17,140.14,140.08,22.7481]
[1719608760386,17.17,140.13,140.08,15.5921]
[1719608760893,20.0,140.15,140.08,15.5921]
[1719608760894,17.17,140.11,140.08,15.5921]
[1719608761310,17.17,140.11,140.09,7.156]
[1719608761621,20.0,140.15,140.09,7.156]
[1719608761622,17.17,140.12,140.09,7.156]
[1719608761808,17.17,140.14,140.08,32.7621]
[1719608762116,20.0,140.13,140.08,32.7621]
[1719608762318,20.0,140.13,140.09,7.156]
[1719608762702,1.23932007,140.19,140.08,32.7621]
[1719608762703,1.23932007,140.19,140.11,7.156]
[1719608762920,17.17,140.16,140.11,7.156]
[1719608763127,20.0,140.15,140.11,7.156]
[1719608763325,17.17,140.16,140.11,7.156]
[1719608763503,20.0,140.15,140.11,7.156]
[1719608764321,21.8105,140.2,140.1,17.17]
[1719608764322,17.17,140.18,140.13,17.17]
[1719608764619,17.17,140.18,140.12,17.17]
[1719608764824,17.17,140.17,140.1,6.5728]
[1719608765006,17.17,140.17,140.11,17.17]
[1719608765325,17.17,140.17,140.12,7.156]
[1719608766208,17.17,140.17,140.1,6.5728]
[1719608766411,17.17,140.17,140.12,7.156]
[1719608767021,7.9590023,140.22,140.13,32.3338]
[1719608767022,1.23898887,140.22,140.13,32.3338]
[1719608767222,17.17,140.2,140.15,7.156]
[1719608767524,37.17,140.19,140.15,7.156]
[1719608767709,17.17,140.19,140.14,17.17]
[1719608767907,20.0,140.18,140.14,17.17]
[1719608768300,20.0,140.18,140.15,7.156]
[1719608770024,17.17,140.19,140.15,7.156]
[1719608770227,20.0,140.18,140.15,7.156]
[1719608770822,20.0,140.18,140.13,15.1638]
[1719608771027,20.0,140.18,140.14,7.156]
[1719608771227,37.17,140.18,140.14,7.156]
[1719608771398,37.17,140.18,140.13,32.3338]
[1719608771399,20.0,140.18,140.13,32.3338]
[1719608771826,20.0,140.18,140.14,7.156]
[1719608772023,17.17,140.19,140.14,17.17]
[1719608772223,20.0,140.18,140.14,17.17]
[1719608772428,20.0,140.18,140.13,32.3338]
[1719608772807,20.0,140.18,140.14,7.156]
[1719608773204,20.0,140.18,140.14,24.326]
[1719608773906,20.0,140.18,140.14,17.17]
[1719608774113,17.17,140.2,140.16,7.156]
[1719608775314,17.17,140.2,140.14,24.326]
[1719608775522,17.17,140.19,140.14,24.326]
[1719608775720,17.17,140.19,140.15,7.156]
[1719608776126,20.0,140.22,140.15,7.156]
[1719608776434,17.17,140.2,140.14,17.17]
[1719608778133,17.17,140.2,140.16,7.156]
[1719608778706,17.17,140.21,140.16,7.156]
[1719608778927,20.0,140.2,140.16,7.156]
[1719608779134,20.0,140.2,140.17,7.156]
[1719608779345,1.23870672,140.25,140.19,7.156]
[1719608779505,23.09211701,140.27,140.19,17.17]
[1719608779709,17.17,140.24,140.19,17.17]
[1719608780019,20.0,140.23,140.19,17.17]
[1719608780533,20.0,140.23,140.2,7.156]
[1719608781418,20.0,140.23,140.16,6.4348]
[1719608781419,17.17,140.22,140.17,7.156]
[1719608781926,17.17,140.21,140.16,6.4348]
[1719608782131,17.17,140.21,140.15,17.17]
[1719608782436,17.17,140.21,140.16,7.156]
[1719608784139,36.3462,140.23,140.13,21.4234]
[1719608784456,17.17,140.18,140.14,7.156]
[1719608785529,17.17,140.19,140.14,24.326]
[1719608785729,17.17,140.19,140.13,21.4234]
[1719608785942,17.17,140.19,140.14,7.156]
[1719608787139,17.17,140.19,140.13,21.4234]
[1719608787528,17.17,140.19,140.14,17.17]
[1719608787724,36.3462,140.23,140.14,17.17]
[1719608788026,17.17,140.19,140.15,7.156]
[1719608788410,17.17,140.2,140.15,7.156]
[1719608788623,20.0,140.19,140.13,21.4234]
[1719608788815,17.17,140.18,140.13,21.4234]
[1719608789040,17.17,140.18,140.14,7.156]
[1719608789224,20.0,140.19,140.14,17.17]
[1719608789428,17.17,140.2,140.14,17.17]
[1719608789725,20.0,140.19,140.14,17.17]
[1719608789927,16.3462,140.23,140.16,17.17]
[1719608790144,37.17,140.22,140.16,17.17]
[1719608791141,37.17,140.22,140.17,7.156]
[1719608791547,20.0,140.22,140.13,21.4234]
[1719608791736,17.17,140.23,140.17,17.17]
[1719608792418,17.17,140.23,140.18,7.156]
[1719608792646,17.17,140.22,140.18,7.156]
[1719608793432,17.17,140.22,140.19,7.156]
[1719608793931,30.32658246,140.27,140.2,17.17]
[1719608794133,23.70208246,140.27,140.22,7.156]
[1719608794448,17.17,140.27,140.21,17.17]
[1719608795237,17.17,140.27,140.22,7.156]
[1719608795551,17.17,140.28,140.22,17.17]
[1719608796230,17.17,140.28,140.23,7.156]
[1719608796426,17.17,140.29,140.24,7.156]
[1719608796641,16.3462,140.3,140.19,49.7213]
[1719608796839,19.93176237,140.33,140.19,171.2213]
[1719608797047,19.93176237,140.33,140.2,22.7166]
[1719608797048,7.35647508,140.33,140.2,22.7166]
[1719608797246,22.8409,140.34,140.21,7.156]
[1719608797549,22.8409,140.34,140.23,7.156]
[1719608798942,16.1968,140.34,140.24,23.7398]
[1719608800057,20.0,140.33,140.24,23.7398]
[1719608803461,20.0,140.33,140.24,16.5838]
[1719608804746,20.0,140.33,140.22,7.156]
[1719608805136,20.0,140.33,140.21,7.156]
[1719608806332,40.4474,140.32,140.2,22.7087]
[1719608806548,20.0,140.31,140.2,22.7087]
[1719608807557,34.27,140.29,140.2,22.7087]
[1719608807742,20.0,140.28,140.2,22.7087]
[1719608809961,35.666,140.28,140.2,16.5759]
[1719608815375,35.666,140.28,140.17,29.7378]
[1719608817267,6.374,140.27,140.17,23.1233]
[1719608817463,54.27,140.26,140.14,7.156]
[1719608819459,20.0,140.26,140.14,7.156]
[1719608820955,20.0,140.26,140.14,41.426]
[1719608822072,19.0,140.26,140.14,41.426]
[1719608823673,19.0,140.26,140.14,7.156]
[1719608825772,19.0,140.26,140.14,12.59525238]
[1719608832685,17.14,140.24,140.2,7.156]
[1719608833462,17.14,140.24,140.14,5.43925238]
[1719608833665,17.14,140.24,140.2,7.156]
[1719608834184,17.14,140.24,140.14,68.56]
[1719608834485,17.14,140.24,140.18,17.14]
[1719608834654,17.14,140.24,140.19,7.156]
[1719608836083,17.14,140.24,140.2,7.156]
[1719608839266,17.14,140.24,140.15,7.156]
[1719608839467,17.14,140.24,140.2,7.156]
[1719608839969,23.3134,140.22,140.13,27.3855018]
[1719608840278,17.14,140.2,140.14,17.14]
[1719608840471,17.14,140.2,140.15,7.156]
[1719608841588,17.14,140.2,140.16,7.156]
[1719608841788,17.14,140.19,140.13,5.3765018]
[1719608842089,6.1734,140.22,140.15,7.156]
[1719608842090,17.14,140.2,140.15,7.156]
[1719608842296,6.1734,140.22,140.1,6.388]
[1719608842479,17.14,140.2,140.14,17.14]
[1719608842676,20.0,140.21,140.16,24.296]
[1719608842995,20.0,140.21,140.18,7.156]
[1719608843464,23.3134,140.22,140.18,7.156]
[1719608843667,15.8153,140.23,140.2,7.156]
[1719608844466,15.8153,140.23,140.21,7.156]
[1719608846271,15.8153,140.23,140.2,7.156]
[1719608846991,15.8153,140.23,140.14,84.9274]
[1719608847172,15.8153,140.23,140.2,7.156]
[1719608850791,15.8153,140.23,140.21,7.156]
[1719608854671,6.1734,140.26,140.21,7.156]
[1719608854872,20.0,140.25,140.21,7.156]
[1719608856999,37.14,140.25,140.21,7.156]
[1719608857200,37.14,140.25,140.2,7.156]
[1719608857581,17.14,140.24,140.2,7.156]
[1719608858283,17.14,140.24,140.19,7.156]
[1719608859694,17.14,140.24,140.2,7.156]
[1719608862180,17.14,140.24,140.15,7.156]
[1719608862413,17.14,140.24,140.2,7.156]
[1719608862594,17.14,140.23,140.19,7.156]
[1719608863405,20.0,140.25,140.14,21.80029641]
[1719608863709,20.0,140.25,140.19,7.156]
[1719608864225,20.0,140.25,140.2,7.156]
[1719608864920,20.0,140.25,140.15,7.156]
[1719608865094,20.0,140.25,140.2,7.156]
[1719608865403,20.0,140.25,140.14,90.36029641]
[1719608865610,20.0,140.25,140.19,17.14]
[1719608865979,20.0,140.25,140.2,7.156]
[1719608868784,20.0,140.25,140.21,7.156]
[1719608868998,20.0,140.25,140.15,7.156]
[1719608869307,20.0,140.25,140.19,7.156]
[1719608870097,20.0,140.25,140.19,24.296]
[1719608871391,20.0,140.25,140.2,7.156]
[1719608871598,15.5325,140.22,140.14,21.80029641]
[1719608872004,17.14,140.21,140.15,17.14]
[1719608872402,17.14,140.21,140.16,7.156]
[1719608873611,17.14,140.21,140.17,7.156]
[1719608874612,17.14,140.21,140.16,17.14]
[1719608874815,15.5325,140.22,140.17,7.156]
[1719608875019,32.6725,140.22,140.17,24.296]
[1719608875312,17.14,140.23,140.17,17.14]
[1719608875516,17.14,140.24,140.19,17.14]
[1719608875699,17.14,140.24,140.2,7.156]
[1719608876019,20.0,140.23,140.2,7.156]
[1719608876223,17.14,140.24,140.2,7.156]
[1719608876597,20.0,140.23,140.2,7.156]
[1719608877490,20.0,140.23,140.19,7.156]
[1719608878528,37.14,140.23,140.19,7.156]
[1719608878695,20.0,140.24,140.18,7.156]
[1719608878893,17.14,140.23,140.18,7.156]
[1719608879093,17.14,140.23,140.18,24.296]
[1719608879995,37.14,140.24,140.18,24.296]
[1719608882425,20.0,140.24,140.18,24.296]
[1719608882602,37.14,140.24,140.2,7.156]
[1719608883133,37.10435,140.24,140.2,7.156]
[1719608887027,37.10435,140.24,140.19,7.156]
[1719608890124,37.10435,140.24,140.18,17.14]
[1719608890336,37.10435,140.24,140.19,7.156]
[1719608890907,17.14,140.23,140.19,7.156]
[1719608891110,17.14,140.23,140.17,17.14]
[1719608891329,17.14,140.21,140.14,21.80029641]
[1719608891514,19.96435,140.24,140.14,21.80029641]
[1719608891716,17.14,140.21,140.15,17.14]
[1719608892419,17.14,140.21,140.16,7.156]
[1719608892726,17.14,140.22,140.16,17.14]
[1719608893330,17.14,140.22,140.17,7.156]
[1719608893828,17.14,140.22,140.16,17.14]
[1719608894029,19.96435,140.24,140.17,17.14]
[1719608894229,17.14,140.22,140.17,17.14]
[1719608894402,17.14,140.22,140.17,7.156]
[1719608896452,17.14,140.2,140.14,5.43289641]
[1719608896743,17.14,140.18,140.12,17.14]
[1719608897530,17.14,140.18,140.13,7.156]
[1719608897743,17.14,140.18,140.14,7.156]
[1719608898152,16.5335,140.2,140.14,7.156]
[1719608898153,17.14,140.19,140.14,17.14]
[1719608898533,17.14,140.19,140.15,7.156]
[1719608898930,16.5335,140.2,140.15,7.156]
[1719608899129,20.0,140.19,140.14,17.14]
[1719608899351,20.0,140.19,140.15,17.14]
[1719608899526,20.0,140.19,140.16,7.156]
[1719608901348,37.14,140.19,140.14,7.156]
[1719608901727,20.0,140.19,140.11,21.83216362]
[1719608901929,17.14,140.19,140.13,17.14]
[1719608902226,17.14,140.19,140.14,17.14]
[1719608902425,17.14,140.19,140.15,7.156]
[1719608903024,17.14,140.19,140.14,7.156]
[1719608903228,17.14,140.18,140.11,21.83216362]
[1719608903529,17.14,140.18,140.14,7.156]
[1719608904642,16.5335,140.2,140.14,7.156]
[1719608904843,37.14,140.19,140.14,7.156]
[1719608907030,37.14,140.19,140.11,21.83216362]
[1719608907031,20.0,140.19,140.11,16.4465]
[1719608907235,20.0,140.19,140.1,17.14]
[1719608907236,17.14,140.15,140.1,17.14]
[1719608908133,17.14,140.15,140.1,7.156]
[1719608908548,17.14,140.14,140.04,20.27695972]
[1719608908752,17.14,140.14,140.09,17.14]
[1719608909054,17.14,140.14,140.09,7.156]
[1719608909560,17.14,140.12,140.04,20.27695972]
[1719608909769,17.14,140.11,140.04,15.5148]
[1719608910253,17.14,140.14,140.05,7.156]
[1719608910430,17.14,140.1,140.05,7.156]
[1719608910627,17.14,140.11,140.05,24.296]
[1719608911439,20.0,140.13,140.05,24.296]
[1719608911646,26.3074,140.13,140.05,24.296]
[1719608912048,26.3074,140.13,140.05,7.156]
[1719608913138,26.3074,140.13,140.05,24.296]
[1719608914648,26.3074,140.13,140.05,7.156]
[1719608915161,17.14,140.09,140.03,17.14]
[1719608915365,17.14,140.08,140.02,17.14]
[1719608915662,17.14,140.08,140.01,7.156]
[1719608915858,17.14,140.08,140.03,7.156]
[1719608916052,17.14,140.08,140.03,24.296]
[1719608916252,17.14,140.08,140.0,19.88385972]
[1719608916474,17.14,140.08,140.02,17.14]
[1719608916846,26.3074,140.13,140.01,17.14]
[1719608916847,17.14,140.07,140.01,17.14]
[1719608917257,17.14,140.07,140.0,20.59666457]
[1719608917646,37.14,140.06,140.0,20.59666457]
[1719608917959,37.14,140.06,140.01,17.14]
[1719608918265,20.0,140.06,140.01,17.14]
[1719608918862,20.0,140.06,140.02,7.156]
[1719608919045,16.0887,140.1,140.02,17.14]
[1719608919246,17.14,140.07,140.02,17.14]
[1719608919652,17.14,140.08,140.02,17.14]
[1719608919853,17.14,140.08,140.03,7.156]
[1719608920052,17.14,140.07,140.03,7.156]
[1719608920652,17.14,140.07,140.01,17.14]
[1719608920864,17.14,140.07,140.03,7.156]
[1719608921272,6.0338,140.08,139.96,20.65785972]
[1719608921455,17.14,140.02,139.96,33.0357]
[1719608921855,17.14,140.02,139.97,7.156]
[1719608922046,17.14,140.02,139.96,33.0357]
[1719608922376,17.14,140.01,139.96,33.0357]
[1719608922973,17.14,140.01,139.97,7.156]
[1719608923152,17.14,140.01,139.96,15.8957]
[1719608923352,17.14,140.01,139.96,17.14]
[1719608924067,17.14,140.01,139.97,7.156]
[1719608924445,15.2143,140.05,139.95,6.5763]
[1719608924647,15.2143,140.0,139.96,17.14]
[1719608924992,17.14,139.98,139.92,17.14]
[1719608925165,17.14,139.98,139.93,7.156]
[1719608925464,17.14,139.98,139.92,17.14]
[1719608926189,17.14,139.98,139.93,7.156]
[1719608926341,17.14,139.98,139.92,17.14]
[1719608926760,17.14,139.98,139.9,20.72790333]
[1719608926972,17.14,139.96,139.9,15.3957]
[1719608927158,17.14,139.96,139.92,7.156]
[1719608927370,17.14,139.96,139.9,15.3957]
[1719608927669,17.14,139.93,139.88,17.14]
[1719608927874,21.2481,139.95,139.88,17.14]
[1719608927875,17.14,139.94,139.88,17.14]
[1719608928071,17.14,139.94,139.89,17.14]
[1719608928257,17.14,139.94,139.87,0.8358413]
[1719608928462,21.2481,139.95,139.88,24.296]
[1719608928664,20.0,139.94,139.89,17.14]
[1719608928863,17.14,139.96,139.87,0.8358413]
[1719608929271,17.14,139.97,139.88,6.5763]
[1719608929574,17.14,139.95,139.9,17.14]
[1719608929949,17.14,139.94,139.87,0.8358413]
[1719608930156,17.14,139.94,139.89,7.156]
[1719608930355,21.2481,139.99,139.88,17.14]
[1719608930556,17.14,139.94,139.88,17.14]
[1719608930854,21.2481,139.99,139.9,17.14]
[1719608931055,17.14,139.96,139.87,0.8358413]
[1719608931256,15.2143,139.94,139.87,0.8358413]
[1719608931456,20.0,139.93,139.87,0.8358413]
[1719608931679,17.14,139.88,139.87,0.8358413]
[1719608931876,37.14,139.88,139.87,0.8358413]
[1719608932770,20.0,139.88,139.87,0.8358413]
[1719608934171,21.2481,139.94,139.87,0.8358413]
[1719608934567,128.62505788,139.94,139.87,0.8358413]
[1719608934769,34.48,139.92,139.87,0.8358413]
[1719608935082,100.0,139.91,139.87,0.8358413]
[1719608935459,20.0,139.9,139.87,0.8358413]
[1719608935967,20.0,139.91,139.87,0.8358413]
[1719608936978,120.0,139.91,139.87,0.8358413]
[1719608937881,20.0,139.91,139.87,0.8358413]
[1719608938079,120.0,139.91,139.87,0.8358413]
[1719608939263,100.0,139.89,139.87,0.8358413]
[1719608939467,20.0,139.88,139.87,0.8358413]
[1719608941184,34.48,139.92,139.87,0.8358413]
[1719608942670,20.0,139.91,139.87,0.8358413]
[1719608943383,120.0,139.91,139.87,0.8358413]
[1719608944185,20.0,139.91,139.87,0.8358413]
[1719608944579,120.0,139.91,139.87,0.8358413]
[1719608944982,127.37424167,139.91,139.87,0.8358413]
[1719608945382,27.37424167,139.91,139.87,0.8358413]
[1719608945585,20.0,139.91,139.87,0.8358413]
[1719608947489,27.37558727,139.91,139.87,0.8358413]
[1719608947871,20.0,139.91,139.87,0.8358413]
[1719608949592,100.0,139.9,139.87,0.8358413]
[1719608949784,20.0,139.89,139.87,0.8358413]
[1719608949980,20.0,139.91,139.87,0.8358413]
[1719608950991,28.71677961,139.94,139.87,0.8358413]
[1719608950992,128.71677961,139.94,139.87,0.8358413]
[1719608951196,121.2481,139.94,139.87,0.8358413]
[1719608952068,134.48,139.92,139.87,0.8358413]
[1719608952489,20.0,139.91,139.87,0.8358413]
[1719608952676,100.0,139.9,139.87,0.8358413]
[1719608953106,20.0,139.89,139.87,0.8358413]
[1719608953274,22.701,139.88,139.87,0.8358413]
[1719608953593,42.701,139.88,139.87,0.8358413]
[1719608954396,142.701,139.88,139.87,0.8358413]
[1719608954776,159.941,139.88,139.87,0.8358413]
[1719608954982,7.37479818,139.93,139.87,0.8358413]
[1719608955283,17.24,139.88,139.87,0.8358413]
[1719608955687,100.0,139.92,139.87,0.8358413]
[1719608955892,17.24,139.88,139.87,0.8358413]
[1719608956592,37.24,139.88,139.87,0.8358413]
[1719608957499,177.578,139.88,139.87,0.8358413]
[1719608957695,100.0,139.86,139.78,15.0014]
[1719608957875,17.24,139.82,139.78,15.0014]
[1719608958391,17.24,139.8,139.77,0.04239412]
[1719608958696,17.24,139.81,139.77,0.04239412]
[1719608958885,17.24,139.78,139.77,0.04239412]
[1719608959079,37.24,139.78,139.77,0.04239412]
[1719608959290,20.0,139.78,139.72,6.36773542]
[1719608959596,37.24,139.78,139.72,6.36773542]
[1719608959782,37.24,139.78,139.72,23.60773542]
[1719608960183,37.24,139.78,139.72,6.36773542]
[1719608960378,17.24,139.77,139.69,15.8278]
[1719608960584,20.0,139.77,139.69,15.8278]
[1719608961296,140.9476,139.79,139.69,15.8278]
[1719608961476,20.0,139.78,139.69,15.8278]
[1719608962494,15.5072,139.77,139.64,15.8278]
[1719608962694,20.0,139.76,139.64,15.8278]
[1719608962896,154.53,139.76,139.64,15.8278]
[1719608963288,100.0,139.74,139.64,15.8278]
[1719608963587,20.0,139.73,139.64,15.8278]
[1719608964178,6.4176,139.72,139.59,0.8358413]
[1719608964379,20.0,139.71,139.56,100.0]
[1719608964583,20.0,139.71,139.58,34.53]
[1719608964990,20.0,139.74,139.58,34.53]
[1719608965202,120.0,139.74,139.58,34.53]
[1719608965400,120.0,139.74,139.58,33.03]
[1719608965601,120.0,139.74,139.56,121.5]
[1719608965783,120.0,139.74,139.57,20.0]
[1719608965983,120.0,139.74,139.58,34.53]
[1719608967101,20.0,139.74,139.58,163.186]
[1719608967282,20.0,139.75,139.58,163.186]
[1719608967602,56.4548,139.76,139.61,34.53]
[1719608968403,40.9476,139.76,139.61,34.53]
[1719608969045,7.55859627,139.78,139.62,121.5]
[1719608969302,156.4548,139.8,139.64,41.686]
[1719608969894,156.4548,139.8,139.65,22.1343]
[1719608971305,100.0,139.74,139.65,22.1343]
[1719608971807,34.53,139.73,139.65,22.1343]
[1719608972007,120.0,139.72,139.6,15.8278]
[1719608972206,120.0,139.72,139.6,22.1343]
[1719608972991,20.0,139.72,139.6,22.1343]
[1719608973293,34.53,139.74,139.6,43.6343]
[1719608973490,20.0,139.73,139.6,78.1643]
[1719608973691,20.0,139.73,139.61,121.5]
[1719608973923,34.53,139.74,139.61,121.5]
[1719608974507,34.53,139.74,139.61,21.5]
[1719608974725,34.53,139.74,139.61,121.5]
[1719608975193,34.53,139.74,139.61,128.656]
[1719608975394,34.53,139.74,139.61,28.656]
[1719608975808,34.53,139.74,139.6,22.1343]
[1719608976010,34.53,139.74,139.61,20.0]
[1719608976324,20.0,139.73,139.61,41.5]
[1719608976506,20.0,139.73,139.61,20.0]
[1719608976697,20.0,139.73,139.6,22.1343]
[1719608976891,20.0,139.73,139.6,29.2903]
[1719608978431,6.5988,139.72,139.6,22.1343]
[1719608978717,20.0,139.71,139.6,22.1343]
[1719608978924,20.0,139.71,139.56,128.0852]
[1719608978925,69.8176,139.71,139.56,128.0852]
[1719608979514,169.8176,139.71,139.56,6.5852]
[1719608979891,69.8176,139.71,139.56,6.0852]
[1719608981306,100.0,139.7,139.56,6.0852]
[1719608981515,20.0,139.69,139.56,6.0852]
[1719608983312,100.0,139.68,139.56,6.0852]
[1719608983515,20.0,139.67,139.55,22.1811]
[1719608986710,15.5547,139.64,139.52,6.2888]
[1719608987223,100.0,139.6,139.47,5.0]
[1719608987425,20.0,139.59,139.47,5.0]
[1719608987623,54.53,139.59,139.47,5.0]
[1719608987910,20.0,139.59,139.47,5.0]
[1719608988099,40.7741,139.62,139.47,58.03]
[1719608988100,20.0,139.61,139.47,58.03]
[1719608988297,20.0,139.61,139.47,1.5]
[1719608989412,20.0,139.61,139.49,100.0]
[1719608989601,54.53,139.61,139.47,1.5]
[1719608989925,34.53,139.58,139.47,1.5]
[1719608990214,21.7988,139.56,139.47,1.5]
[1719608990419,34.53,139.55,139.47,1.5]
[1719608990601,20.0,139.55,139.47,1.5]
[1719608991007,6.2441,139.59,139.47,1.5]
[1719608991313,34.53,139.51,139.47,1.5]
[1719608991512,43.88116745,139.5,139.47,1.5]
[1719608991717,70.0847,139.5,139.47,1.5]
[1719608991903,8.53921406,139.49,139.47,1.5]
[1719608992104,20.0,139.48,139.47,1.5]
[1719608992300,28.53921406,139.48,139.47,1.5]
[1719608992827,37.79461566,139.48,139.47,1.5]
[1719608993402,100.0,139.45,139.34,0.04252495]
[1719608993720,28.09070222,139.44,139.34,0.04252495]
[1719608994311,36.48066493,139.44,139.34,0.04252495]
[1719608994807,100.0,139.43,139.34,0.04252495]
[1719608995017,20.0,139.42,139.34,0.04252495]
[1719608995316,100.0,139.41,139.34,0.04252495]
[1719608995514,20.0,139.4,139.34,0.04252495]
[1719608996024,100.0,139.39,139.34,0.04252495]
[1719608996212,20.0,139.4,139.34,0.04252495]
[1719608996723,2.42733566,139.42,139.34,0.04252495]
[1719608997242,6.91925777,139.46,139.34,0.04252495]
[1719608997405,139.06,139.45,139.34,0.04252495]
[1719608997609,100.0,139.39,139.34,0.04252495]
[1719608997817,6.1545,139.38,139.34,0.04252495]
[1719608998002,20.0,139.37,139.34,0.04252495]
[1719608998198,6.1545,139.43,139.34,0.04252495]
[1719608998402,100.0,139.41,139.34,0.04252495]
[1719608998612,106.76903555,139.41,139.34,0.04252495]
[1719608998814,20.0,139.4,139.34,0.04252495]
[1719608999519,100.0,139.39,139.34,0.04252495]
[1719608999720,20.0,139.38,139.34,0.04252495]
[1719609000309,20.0,139.4,139.34,0.04252495]
[1719609000508,6.76903555,139.41,139.34,0.04252495]
[1719609000707,2.42733566,139.42,139.34,0.04252495]
[1719609001325,100.0,139.41,139.34,0.04252495]
[1719609001710,106.76903555,139.41,139.34,0.04252495]
[1719609001916,2.42733566,139.4,139.34,0.04252495]
[1719609002319,2.42733566,139.4,139.35,6.5865]
[1719609002517,100.0,139.48,139.35,6.5865]
[1719609002725,2.42733566,139.47,139.35,6.5865]
[1719609003020,100.0,139.46,139.35,6.5865]
[1719609003220,102.42733566,139.47,139.35,6.5865]
[1719609003411,100.0,139.43,139.35,6.5865]
[1719609003923,100.0,139.45,139.35,6.5865]
[1719609004116,100.0,139.43,139.35,6.5865]
[1719609004321,2.42733566,139.46,139.35,6.5865]
[1719609005003,100.0,139.47,139.35,6.5865]
[1719609005625,39.06,139.49,139.35,6.5865]
[1719609005626,100.0,139.45,139.35,6.5865]
[1719609005827,100.0,139.47,139.35,6.5865]
[1719609006032,100.0,139.52,139.35,6.5865]
[1719609006224,100.0,139.54,139.35,6.5865]
[1719609006436,118.63616066,139.54,139.35,6.5865]
[1719609006608,118.63616066,139.54,139.35,135.2626]
[1719609006928,2.42733566,139.54,139.35,135.2625]
[1719609007115,2.42733566,139.54,139.37,121.5]
[1719609007315,100.0,139.55,139.37,160.56]
[1719609007528,100.0,139.55,139.37,60.56]
[1719609007716,100.0,139.55,139.37,160.56]
[1719609008032,100.0,139.57,139.4,21.5]
[1719609008329,106.6193,139.6,139.42,6.5865]
[1719609008515,100.0,139.54,139.42,6.5865]
[1719609008717,100.0,139.52,139.41,16.1663]
[1719609009110,100.0,139.5,139.37,6.5865]
[1719609009430,100.0,139.45,139.32,6.5865]
[1719609009628,100.0,139.4,139.32,6.5865]
[1719609009929,20.0,139.39,139.31,0.8358413]